{"text_format":"1","workbook":"xlsx","n_sheets":7,"sheets":["Page 1","Page 2","Page 3","Page 4","Mesures des Voiles","Lexique 2017","Auxiliaries"],"not_rendered":{"charts":0,"images":15,"macros":1,"external_links":0,"defined_names":30,"comments":3,"pivot_tables":0},"unopened":[],"bounds":{"document_bytes":16777216,"sheet_cells":100000,"rows_first":2000,"rows_last":500,"rows_between":2000,"halvings":0,"cell_chars":16384,"cell_head_chars":4096},"cells_cut":0,"cells_raw":0,"read":"whole","date_system":"1900"}

{"sheet":"Page 1","index":0,"n_rows":74,"n_cols":24,"rows_kept":74,"cut":false,"hidden":false,"merged":[[16,17,16,22],[18,17,18,22],[20,17,20,18],[1,21,2,25],[7,7,9,24],[11,17,11,19],[13,17,13,23],[4,7,6,23],[25,3,25,6],[31,7,31,13],[31,19,31,23],[35,7,35,8],[35,21,35,22],[33,7,33,12],[33,17,33,23],[35,23,35,25],[38,12,39,13],[38,14,39,15],[40,4,40,9],[40,12,40,23],[42,4,42,7],[42,12,42,23],[44,4,44,9],[44,12,44,23],[48,1,58,2],[48,3,48,19],[49,3,49,25],[55,7,55,11],[57,8,57,19],[52,3,52,7],[59,1,73,2],[60,3,60,6],[62,3,62,25],[64,6,64,11],[65,11,66,13],[67,5,67,7],[67,13,67,15],[67,21,67,23],[70,3,70,4],[73,3,73,25]]}
[]
[null,null,null,null,null,null,null,null,null,null,null,null,null,null,null,null,null,null,null,null,null,17]
[]
[]
[null,null,null,null,null,null,null,"FORMULAIRE de PREMIERE DEMANDE "]
[]
[]
[null,null,null,null,null,null,null,"Certificat de jauge ORC Club  +  Contrat de jauge OSIRIS                    -   2 0 1 7    -"]
[]
[]
[]
[null,null,null,null,null,null,null,null,null,null,null,null,null,null,null,"N° de Voile :"]
[]
[null,null,null,null,null,null,null,null,null,null,null,null,null,null,null,"Nom du Bateau :"]
[]
[]
[null,null,null,null,null,null,null,null,null,null,null,null,null,null,null,null,"PORT d' ATTACHE :"]
[]
[null,null,null,null,null,null,null,null,null,null,null,null,null,null,null,null,"Première Régate :"]
[]
[null,null,null,null,null,null,null,null,null,null,null,null,null,null,null,null,"Date :",null,null," (jj/mm/aaaa)"]
[]
[]
[null,null,null,null,null,null,null,null,null,null,null,null,null,{"$f":"'Page 4'!O22","v":""},"Euros",null,null,null,null,"Chèque ci-joint :"]
[]
[null,null,null,"luc.gellusseau@ffvoile.fr",null,null,null,null,null,null,null,null,null,null,null,"Masse d' Equipage =",null,null,null,"Kg"]
[]
[]
[]
[null,null,null,null,null,null,null,null,null,null,null,null,"IDENTIFICATION"]
[]
[null,null,null,null,null,"Nom de la Série:",null,null,null,null,null,null,null,null,null,null,null,"Particularités :"]
[]
[null,null,null,null,null,"Constructeur :",null,null,null,null,null,null,null,null,null,"Architecte :"]
[]
[null,null,null,null,null,"Année de Construction de la Série :",null,null,null,"(mm/aaaa)",null,null,null,null,null,null,null,null,null,"Année de la Première Mise à l'Eau :",null,null,null,"(mm/aaaa)"]
[]
[]
[null,null,null,"Propriétaire :",null,null,null,null,null,null,null,null,"Adresse :"]
[]
[null,null,null,"NOM :"]
[]
[null,null,null,"Prénom :"]
[]
[null,null,null,"E-mail :"]
[]
[]
[null,null,null,null,null,null,null,null,null,null,null,null,"CARACTERISTIQUES de la COQUE & des APPENDICES"]
[null,"C O Q U E",null,"La coque est elle en tout point identique à celle construite a l'origine ?",null,null,null,null,null,null,null,null,null,null,null,null,null,null,null,null,null,null,"OUI","NON"]
[null,null,null,{"$f":"IF(OR(Z49=1,Z49=\"\"),\"\",\" N'oubliez pas de joindre les plans associés à ces modifications !\")","v":""}]
[]
[null,null,null,null,null,"Longueur de Coque HT =",null,null,"m",null,null,"Bau Maxi =",null,null,"m"]
[null,null,null,"(Indique le Tarif en Page 4)"]
[null,null,null,null,null,"Tirant d' Eau:         Maxi =",null,null,"m",null,null,"Min =",null,null,"m"]
[]
[null,null,null,null,null,"Déplacement donné par :",null,null,null,null,null,null,null,null,"Kg",null,null,null,null,"Justificatif de Pesée ci-joint ?",null,null,"OUI","NON"]
[]
[null,null,null,null,null,null,null,"Condition de Charge du Bateau :"]
[]
[null,"A P P E N D I C E S"]
[null,null,null,"QUILLE(s) :",null,null,null,null,null,null,null,null,null,null,null,null,null,null,null,"Nombre de Quilles :"]
[null,null,null,null,null,null,null,null,null,null,null,null,null,null,null,null,null,null,null,"La quille est elle en tout point identique à celle d'origine fournie par le constructeur ?",null,null,"OUI","NON"]
[null,null,null,{"$f":"IF(OR(Z62=1,Z62=\"\"),\"\",\" N'oubliez pas de joindre les plans associés à ces modifications !\")","v":""}]
[]
[null,null,null,null,"Nature de la Quille(s):"]
[null,null,null,null,null,null,null,null,null,null,null," Matériaux :"]
[]
[null,null,null,null,"Voile de Quille :",null,null,null,null,null,null,null,"Bulbe :",null,null,null,null,null,null,"Ailettes :"]
[]
[]
[null,null,null,"GOUVERNAIL(s) :",null,null,null,null,null,null,null,null,null,null,null,null,null,null,null,"Nombre de Gouvernail(s) :"]
[]
[null,null,null,null,null,null,null,null,null,null,null,null,null,null,null,null,null,null,null,"Le(s) gouvernail(s) est il en tout point identique à celui d'origine fourni par le constructeur ?",null,null,"OUI"," NON"]
[null,null,null,{"$f":"IF(OR(Z73=1,Z73=\"\"),\"\",\" N'oubliez pas de joindre les plans associés à ces modifications !\")","v":""}]

{"sheet":"Page 2","index":1,"n_rows":70,"n_cols":23,"rows_kept":70,"cut":false,"hidden":false,"merged":[[1,1,1,24],[5,15,5,16],[5,21,5,22],[7,6,7,8],[43,6,43,8],[43,17,43,21],[23,1,23,24],[26,1,26,24],[28,2,28,4],[28,6,28,8],[7,19,7,21],[20,6,20,8],[67,2,68,23],[69,2,69,17],[59,2,60,14],[28,12,28,14],[31,6,31,8],[31,13,31,14],[31,18,31,20],[55,2,55,17],[30,2,31,3],[59,15,60,22],[45,6,45,8],[51,10,51,15],[62,15,62,18],[62,20,62,22],[57,15,57,22],[51,1,51,9]]}
[]
[null,"CARACTERISTIQUES du MOTEUR :"]
[]
[null,null,null,null,null,null,"PROPULSION MECANIQUE FIXE ?",null,"OUI","NON",null,null,null,null,null,null,"Moteur Hors-bord en Puit :",null,null,null,false]
[]
[null,null,null,null,"Moteur Inboard:",null,"Marque:",null,null,null,null,null,null,"Modèle :"]
[]
[null,null,null,null,"Type de l' Hélice :",null,null,null,null,null,null,null,null,"Nombre de Pâles :",null,null,null,null,"Diamètre :",null,null,null," mm"]
[]
[]
[null,null,"Indiquez le Type de l'Installation de l'Hélice, ou shématiser celui-ci dans le cadre ci-dessous :"]
[null,null,null,"          A",null,null,"   B",null,"                      C",null,null,null,"                  D",null,null,null,null,"    E"]
[null,null,null,"   "]
[]
[]
[]
[]
[]
[]
[]
[null,null,null,null,"Référence de l' Embase :",null,null,null,null,null,"  (Ex: VOLVO /130S  ou  YANMAR SD20)"]
[]
[]
[null,"CARACTERISTIQUES du GREEMENT :",null,null,null,null,null,null,null,null,null,null,null,null,null,null,null,null,null,null,null,null,true]
[]
[null,null,null,null,null,null,null,null,null,null,null,null,null,null,null,null,"Le mât est en tout point identique à celui d'origine fourni par le constructeur ?",null,"OUI",null,null,"NON"]
[null,{"$f":"IF(OR(W26=2,W26=\"\"),\"\",\" N'oubliez pas de joindre les plans associés à ces modifications !\")","v":""}]
[]
[null,null,"Type de Gréement :"]
[]
[null,null,"M A T :"]
[null,null,null,null,"Marque :",null,null,null,null,null,null,null,"Masse :",null,null,null,null,"Hauteur CG :"]
[]
[null,null,null,null,null,null,null,"Posé sur le pont ?","OUI","NON",null,null,null,null,null,null,"Orientable ?",null," OUI",null,null,"NON"]
[]
[null,null,null,null,null,null,null,"Avec Rétreint ?","OUI","NON",null,null,null,null,null,null,"Avec Guignol ?",null," OUI",null,null,"NON"]
[]
[null,null,null,null,null,null,null,null,null,null,null,null,null,null,null,null,"Dans sa construction, a-t-on utilisé des fibres de Carbone ?",null," OUI",3,null,"NON"]
[]
[]
[]
[null,null,null,null,null,null,null,null,"Nombre de paires de Barres de Flèche :",null,null,null,null,null,null,null,null,null,"Nombre de paires de Bastaques :"]
[]
[null,null,null,null,"Etai Avant :",null,null,null,null,null,null,null,null,null,null,"Gréement dormant :"]
[]
[null,null,null,null,"Bas-Etai :",null,null,null,null,null,null,null,null,null,null,null,"Etai Avant réglable en navigation ?",null," OUI",null,null,"NON"]
[]
[null,null,null,null,null,null,null,"Le Pataras est il réglable ?","OUI","NON",null,null,null,null,null,null,"Enrouleur de Grand Voile ?",null," OUI",null,null,"NON"]
[]
[null,null,null,null,null,null,null,null,null,null,null,null,null,null,null,null,"Dans la construction de la Bôme, a-t-on utilisé des fibres de Carbone ?",null," OUI",null,null,"NON"]
[]
[null,"Utilisation d'énergie autre que manuelle pour régler : "]
[]
[]
[]
[null,null,"Une (ou des) modifications ont elles été apportées par rapport au bateau d'origine ?",null,null,null,null,null,null,null,null,null,null,null,null,null,null,null,"OUI",null,null,"NON"]
[]
[null,null,null,null,null,null,null,null,null,null,null,null,null,null,"Construction de la Coque ?"]
[]
[null,null,"Votre bateau possède t-il une (ou plusieures) caractéristiques particulières [pas d'aménagement, quille(s) spéciale(s), foil et/ou canard, tout système dynamique modifiant la stabilité, échelles de rappel, etc…] ?"]
[]
[]
[null,null,null,null,null,null,null,null,null,null,null,null,null,null,"Utilisation matériaux légers (Titane, Carbone, etc..) pour Balcons/Chandeliers ?"]
[]
[null,null,null,null,null,null,null,null,null,null,null,null,null,null,null,"Utilisation fibres de Carbone pour Gouvernail (y compris la mèche) ?",null,null," OUI",null,null,"NON"]
[]
[null,null,null,null,null,null,null,null,null,null,null,null,null,null,null,"Il y a-t-il une Cabine Avant Aménagée ?",null,null,"OUI",null,null,"NON"]
[null,null,"Cabine avant aménagée :  C'est la partie du bateau située en avant du mât principal, entièrement aménagée en un espace de vie et qui doit être réalisée en utilisant des matériaux rigides."]
[]
[null,null,"Nota:  Les couchettes sur cadre ne remplissent pas cette condition."]

{"sheet":"Page 3","index":2,"n_rows":76,"n_cols":19,"rows_kept":76,"cut":false,"hidden":false,"merged":[[2,2,51,2],[73,3,74,19],[75,3,76,19],[64,3,64,7],[63,13,63,17],[53,3,53,18],[59,7,59,14],[67,7,67,8]]}
[]
[]
[null,null,"A     C O M P L E T E R    O B L I G A T O I R E M E N T "]
[]
[]
[]
[]
[]
[]
[]
[]
[]
[]
[]
[]
[]
[]
[]
[]
[]
[]
[]
[]
[]
[]
[]
[]
[]
[]
[]
[]
[]
[]
[]
[]
[]
[]
[]
[]
[]
[]
[]
[]
[]
[]
[]
[]
[]
[]
[]
[]
[]
[]
[null,null,null,"-    AUCUN CERTIFICAT NE SERA EMIS SANS LES VALEURS INDIQUEES EN ROUGE   -"]
[]
[null,null,null,"P =",null,null,null,"MDT1 =",null,null,null,"E =",null,null,null,"J ="]
[]
[null,null,null,"I =",null,null,null,"MDL1 =",null,null,null,"BD =",null,null,null,"HLP ="]
[]
[null,null,null,"ISP-1 =",null,null,null,{"$f":"IF(OR(R56=\"\",R58=\"\",R60=\"\",R62=\"\"),\"*** Indiquer les valeurs manquantes ***\",\"\")","v":"*** Indiquer les valeurs manquantes ***"},null,null,null,null,null,null,null,"SPL ="]
[]
[null,null,null,"ISP-2 =",null,null,null,"SFJ =",null,null,null,null,null,null,null,"TPS ="]
[]
[null,null,null,null,null,null,null,"Diamètre longitudinal du profil =",null,null,null,"Bout-Dehors ?"]
[null,null,null,"(Etai creux, Emmagasineur, Enrouleur)"]
[]
[]
[null,null,null,null,null,null,"Présence de ballast(s) (à eau) ?","    OUI",null,"NON",null,null,null,null,null,"Volume total de tous les ballasts = ",null,null,"Litres"]
[]
[null,null,null,null,null,null,null,null,null,null,null,null,null,null,null,"Distance transversale entre les CG des ballasts =",null,null,"m"]
[]
[]
[null,null,"IMPORTANT :"]
[null,null,"1)","Un emmagasineur n'est pas un enrouleur. Quand on déclare un foc à enrouleur, cela implique qu'il ne peut y avoir à bord d'autres focs que le foc de gros temps (RSO) et le tourmentin."]
[]
[null,null,"2)","Les marques de jauge sont obligatoires sur le mât et la bôme.  A défaut les axes des réas des poulies de renvoi de drisse ou d'étarque serviront de point de mesure."]

{"sheet":"Page 4","index":3,"n_rows":54,"n_cols":20,"rows_kept":54,"cut":false,"hidden":false,"merged":[[56,3,56,20],[46,1,47,22],[53,5,53,9],[49,11,52,20],[49,5,49,9],[51,5,51,7],[43,2,43,3],[5,8,5,17],[4,8,4,17],[6,8,6,17],[28,1,29,5],[42,2,42,21],[38,2,38,21],[24,1,24,20],[25,1,25,20],[30,1,31,22],[34,13,34,20],[35,13,35,20],[37,2,37,5],[40,2,41,21]]}
[]
[]
[]
[]
[null,null,null,null,null,null,null,null,"-   TARIFS  2017   -"]
[null,null,null,null,null,null,null,null,"Pour Première Demande de"]
[null,null,null,null,null,null,null,null,"Certificat de jauge ORC Club + Contrat de jauge OSIRIS "]
[]
[]
[null,null,null,null,null,null,"De",null,5,"m","à",7.9989999999999997,"m",null,{"$f":"Auxiliaries!P5","v":68},null,"Euros",null,null,{"$f":"IF(AND(I$22>=I10,I$22<L10),1,0)","v":0}]
[]
[null,null,null,null,null,null,"De",null,8,"m","à",9.9990000000000006,"m",null,{"$f":"Auxiliaries!P6","v":83},null,"Euros",null,null,{"$f":"IF(AND(I$22>=I12,I$22<L12),1,0)","v":0}]
[]
[null,null,null,null,null,null,"De",null,10,"m","à",11.999000000000001,"m",null,{"$f":"Auxiliaries!P7","v":108},null,"Euros",null,null,{"$f":"IF(AND(I$22>=I14,I$22<L14),1,0)","v":0}]
[]
[null,null,null,null,null,null,"De",null,12,"m","à",14.999000000000001,"m",null,{"$f":"Auxiliaries!P8","v":148},null,"Euros",null,null,{"$f":"IF(AND(I$22>=I16,I$22<L16),1,0)","v":0}]
[]
[null,null,null,null,null,null,"De",null,15,"m"," et plus",null,null,null,{"$f":"Auxiliaries!P9","v":201},null,"Euros",null,null,{"$f":"IF(AND(I$22>=I18,I$22<L18),1,0)","v":0}]
[]
[]
[]
[null,null,null,null,null,null,null,null,{"$f":"'Page 1'!H52","v":0},"m",null,null,null,null,{"$f":"IF(I22=0,\"\",IF(T10=1,O10,IF(T12=1,O12,IF(T14=1,O14,IF(T16=1,O16,O18)))))","v":""},null,"Euros"]
[]
[]
[null,"Les certificats de jauge ORC Club 2017 commencent à être établis à partir du 15 Février 2017"]
[null,"Les formulaires sont téléchargeables à partir du site :"]
[null,null,null,null,"  http://www.ffvoile.fr/ffv/web/pratique/habitable/OSIRIS/formulaires.aspx"]
[]
[null," Rappels Importants :"]
[]
[null,"Un certificat de jauge ne peut être équitable si les mesures et valeurs déclarées                                              ne sont pas précises et correctes."]
[]
[]
[]
[null,null,null,"Voiles Plates  (Génois / Focs/ Code 0 / Gennaker):",null,null,null,null,null,null,null,null,null,"Largeur à Mi-hauteur  <  0.75 *  Bordure"]
[null,null,null,"Voiles Creuses (Spinnakers):",null,null,null,null,null,null,null,null,null,"Largeur à Mi-hauteur  ≥   0.75 * Bordure"]
[]
[null,null,"Conséquences :"]
[null,null,"Les voiles de type Code 0 et Gennaker doivent être mesurées comme des Génois."]
[]
[null,null,"Les dimensions du Code 0 et du Gennaker doivent impérativement être déclarées en utilisant le formulaire des mesures des voiles."]
[]
[null,null,"Pour toutes modifications concernant les voiles, contacter votre Mesureur et joindre sa feuille de mesures."]
[null,null,"VOIR:",null,"http://www.ffvoile.fr/ffv/web/pratique/habitable/OSIRIS/Liste_Delegues.aspx"]
[]
[]
[null,"Pour être valide, un certificat doit être signé par le propriétaire.                                                                            En signant son certificat, le propriétaire accepte toutes les mesures et les informations qui y figurent."]
[]
[]
[null,null,null,null,"Fait à :",null,null,null,null,null,null,"Je certifie sur l'honneur l'exactitude de mes déclarations et je reconnais mes responsabilités à l'égard de la jauge, en sachant que toute inexactitude pourra être soumise à réclamation."]
[]
[null,null,null,null,"Le :"]
[]
[null,null,null,null,"Le Déclarant :",null,null,null,null,null,null,"Le propriétaire   (ou son représentant)"]

{"sheet":"Mesures des Voiles","index":4,"n_rows":127,"n_cols":27,"rows_kept":127,"cut":false,"hidden":false,"merged":[[121,3,122,10],[121,17,121,23],[125,1,125,26],[126,1,126,26],[115,1,116,2],[115,3,116,10],[117,3,118,10],[117,17,117,23],[119,3,120,10],[119,17,119,19],[111,1,112,26],[113,3,114,6],[94,14,94,16],[94,21,94,23],[98,3,98,4],[98,11,98,12],[98,18,98,19],[104,3,104,4],[104,11,104,12],[104,18,104,19],[79,2,79,4],[79,7,79,8],[79,11,79,12],[87,11,87,17],[87,18,87,24],[89,7,89,8],[92,1,109,1],[92,2,92,25],[92,26,109,26],[93,6,93,9],[93,14,93,16],[93,21,93,23],[94,6,94,9],[106,3,106,9],[106,12,106,17],[106,19,106,25],[108,7,108,8],[67,1,90,1],[67,2,67,10],[67,11,67,25],[75,2,75,4],[77,2,77,4],[79,18,79,19],[81,2,81,4],[81,7,81,8],[67,26,90,26],[68,6,68,9],[68,12,69,25],[69,6,69,9],[70,14,70,16],[70,21,70,23],[71,14,71,16],[71,21,71,23],[75,7,75,8],[77,7,77,8],[83,2,83,4],[83,7,83,8],[85,2,85,4],[85,7,85,8],[87,2,87,4],[87,7,87,8],[44,1,65,1],[44,2,44,25],[58,2,58,4],[58,7,58,8],[58,11,58,12],[58,18,58,19],[60,2,60,4],[60,7,60,8],[60,11,60,12],[60,18,60,19],[54,2,54,4],[54,7,54,8],[54,11,54,12],[54,18,54,19],[56,2,56,4],[56,7,56,8],[56,11,56,12],[56,18,56,19],[62,2,62,4],[62,7,62,8],[62,11,62,12],[62,18,62,19],[64,7,64,8],[44,26,65,26],[45,6,45,9],[45,14,45,16],[45,21,45,23],[46,6,46,9],[46,14,46,16],[46,21,46,23],[50,2,50,4],[52,2,52,4],[52,7,52,8],[52,11,52,12],[52,18,52,19],[30,9,30,10],[30,11,30,12],[30,16,30,17],[30,18,30,19],[32,9,32,10],[32,11,32,12],[32,16,32,17],[32,18,32,19],[50,7,50,8],[50,11,50,12],[50,18,50,19],[25,4,27,7],[26,9,26,10],[26,11,26,12],[26,16,26,17],[26,18,26,19],[28,4,29,4],[28,9,28,10],[28,11,28,12],[28,16,28,17],[28,18,28,19],[2,9,4,24],[5,9,6,24],[8,19,8,21],[11,15,11,23],[15,4,15,10],[22,9,22,10],[22,12,22,14],[22,21,22,23],[24,9,24,10],[24,11,24,12],[24,16,24,17],[24,18,24,19],[20,2,20,25],[21,9,21,10],[21,12,21,14],[21,19,21,20],[21,21,21,23],[17,6,17,24]]}
[]
[]
[null,null,null,null,null,null,null,null,null,"            FORMULAIRE de MESURES des VOILES "]
[]
[]
[null,null,null,null,null,null,null,null,null," -  2 0 1 7  -"]
[]
[]
[null,null,null,null,null,null,null,null,null,null,null,null,null,null,null,null,null,"N° de Voile :"]
[]
[]
[null,null,null,null,null,null,null,null,null,null,null,null,null,null,"NOM du Bateau : "]
[]
[null,null,null,null,null,null,null,null,null,null,null,null,null,null,null,"1er Certificat"]
[]
[null,null,null,null,"luc.gellusseau@ffvoile.fr",null,null,null,null,null,null,null,null,null,null,"Modifications demandées"]
[null,null,null,null,null,null,null,null,null,null,null,null,null,null,null,0]
[null,null,null,null,null,null,"Attention: A priori, les anciennes mesures seront conservées sans instructions contraires"]
[]
[]
[null,null,"Grand - Voiles"]
[null,null,null,null,null,null,null,null,null,"TYPE",null,null,"Matériaux utilisés",null,null,null,null,null,null,"TYPE",null,"Matériaux utilisés"]
[null,null,null,null,null,null,null,null,"Identification :"]
[]
[null,null,null,null,null,null,null,null,null,"(MHB)",null,"Têtière ",null,null,null," m","(MHB)",null,"Têtière ",null,null,null," m"]
[null,null,null,null,"Mesures prises sur les espars:"]
[null,null,null,null,null,null,null,null,null,"(MUW)",null,"7/8 haut",null,null,null," m","(MUW)",null,"7/8 haut",null,null,null," m"]
[]
[null,null,null,null,"Rappel :",null,null,null,null,"(MTW)",null,"3/4 haut",null,null,null," m","(MTW)",null,"3/4 haut",null,null,null," m"]
[]
[null,null,null,null," P =",null,null,"m",null,"(MHW)",null,"Mi-hauteur",null,null,null," m","(MHW)",null,"Mi-hauteur",null,null,null," m"]
[]
[null,null,null,null,"E =",null,null,"m",null,"(MQW)",null,"1/4 bas",null,null,null," m","(MQW)",null,"1/4 bas",null,null,null," m"]
[]
[null,null,null,null,"SPL =",null,null,"m"]
[]
[null,null,null,null,null,null,null,null,null,null,null,null,"Guindant Indicatif =",null,null," m",null,null,null,"Guindant Indicatif =",null,null," m"]
[]
[null,null,null,null,"J =",null,null,"m",null,null,null,null,"Bordure Indicative =",null,null," m",null,null,null,"Bordure Indicative =",null,null," m"]
[]
[null,null,null,null,null,null,null,null,null,null,null,null,null,null,{"$f":"IF(O37>0.997*$G31,\"Guindant est trop grand ou P trop petit\",\"\")","v":""},null,null,null,null,null,null,null,null,{"$f":"IF(V37>0.997*$G31,\"Guindant est trop grand ou P trop petit\",\"\")","v":""}]
[null,null,null,null,null,null,null,null,null,null,null,null,"Surface =",null,{"$f":"IF(OR($G31=\"\",$G33=\"\",O25=\"\",O27=\"\",O29=\"\",O31=\"\",O33=\"\"),\"\",ROUND($G31/8*($G33+2*O33+2*O31+1.5*O29+O27+0.5*O25),2))","v":""}," m²",null,null,null,"Surface =",null,{"$f":"IF(OR($G31=\"\",$G33=\"\",V25=\"\",V27=\"\",V29=\"\",V31=\"\",V33=\"\"),\"\",ROUND($G31/8*($G33+2*V33+2*V31+1.5*V29+V27+0.5*V25),2))","v":""}," m²"]
[]
[]
[null,"VOILES PLATES D'AVANT","Voiles de types : Focs / Génois / Code 0",null,null,null,null,null,null,null,null,null,null,null,null,null,null,null,null,null,null,null,null,null,null,null,"VOILES PLATES D'AVANT"]
[null,null,null,null,"TYPE",null,"Matériaux utilisés",null,null,null,null,null,"TYPE",null,"Matériaux utilisés",null,null,null,null,"TYPE",null,"Matériaux utilisés"]
[]
[]
[null,null,null,null,null,null,"Latté?",null,null,null,null,null,null,null,"Latté?",null,null,null,null,null,null,"Latté?"]
[]
[null,null,"Têtière ",null,null,null,null," m",null,"(HHB)",{"$f":"IF(G51=\"\",0.02*G61,G51)","v":0},"Têtière ",null,null,null," m","(HHB)",{"$f":"IF(O51=\"\",0.02*O61,O51)","v":0},"Têtière ",null,null,null," m","(HHB)",{"$f":"IF(V51=\"\",0.02*V61,V51)","v":0}]
[]
[null,null,"7/8 haut",null,null,null,null," m",null,"(HUW)",{"$f":"IF(G53=\"\",0.125*G61+0.875*K51,G53)","v":0},"7/8 haut",null,null,null," m","(HUW)",{"$f":"IF(O53=\"\",0.125*O61+0.875*R51,O53)","v":0},"7/8 haut",null,null,null," m","(HUW)",{"$f":"IF(V53=\"\",0.125*V61+0.875*Y51,V53)","v":0}]
[]
[null,null,"3/4 haut",null,null,null,null," m",null,"(HTW)",{"$f":"IF(G55=\"\",0.25*G61+0.75*K51,G55)","v":0},"3/4 haut",null,null,null," m","(HTW)",{"$f":"IF(O55=\"\",0.25*O61+0.75*R51,O55)","v":0},"3/4 haut",null,null,null," m","(HTW)",{"$f":"IF(V55=\"\",0.25*V61+0.75*Y51,V55)","v":0}]
[]
[null,null,"Mi-hauteur",null,null,null,null," m",null,"(HHW)",{"$f":"IF(G57=\"\",0.5*G61+0.5*K51,G57)","v":0},"Mi-hauteur",null,null,null," m","(HHW)",{"$f":"IF(O57=\"\",0.5*O61+0.5*R51,O57)","v":0},"Mi-hauteur",null,null,null," m","(HHW)",{"$f":"IF(V57=\"\",0.5*V61+0.5*Y51,V57)","v":0}]
[]
[null,null,"1/4 bas",null,null,null,null," m",null,"(HQW)",{"$f":"IF(G59=\"\",0.75*G61+0.25*K51,G59)","v":0},"1/4 bas",null,null,null," m","(HQW)",{"$f":"IF(O59=\"\",0.75*O61+0.25*R51,O59)","v":0},"1/4 bas",null,null,null," m","(HQW)",{"$f":"IF(V59=\"\",0.75*V61+0.25*Y51,V59)","v":0}]
[]
[null,null,"+ Gde Larg",null,null,null,null," m",null,"(HLP)",null,"+ Gde Larg",null,null,null," m","(HLP)",null,"+ Gde Larg",null,null,null," m","(HLP)"]
[]
[null,null,"Guindant",null,null,null,null," m",null,"(HLU)",null,"Guindant",null,null,null," m","(HLU)",null,"Guindant",null,null,null," m","(HLU)"]
[]
[null,null,null,null,"Surface =",null,{"$f":"IF(OR(G61=\"\",G63=\"\"),\"\",ROUND(0.1125*G63*(1.445*G61+2*K59+2*K57+1.5*K55+K53+0.5*K51),2))","v":""}," m²",null,null,null,null,"Surface =",null,{"$f":"IF(OR(O61=\"\",O63=\"\"),\"\",ROUND(0.1125*O63*(1.445*O61+2*R59+2*R57+1.5*R55+R53+0.5*R51),2))","v":""}," m²",null,null,null,"Surface =",null,{"$f":"IF(OR(V61=\"\",V63=\"\"),\"\",ROUND(0.1125*V63*(1.445*V61+2*Y59+2*Y57+1.5*Y55+Y53+0.5*Y51),2))","v":""}," m²"]
[]
[]
[null,"VOILES PLATES D'AVANT","Gennaker",null,null,null,null,null,null,null,null,"Spinnakers  Symétriques",null,null,null,null,null,null,null,null,null,null,null,null,null,null,"VOILES CREUSES D'AVANT"]
[null,null,null,null,null,null,"Matériaux utilisés",null,null,null,null,null,"Un Spinnaker symétrique doit être parfaitement symétrique par rapport à sa médiane de Bordure, en construction et en utilisation de matériau.   "]
[]
[null,null,null,null,null,null,null,null,null,null,null,null,"TYPE",null,"Matériaux utilisés",null,null,null,null,"TYPE",null,"Matériaux utilisés"]
[null,null,null,null,null,"     Guidant Libre ?"]
[null,null,null,null,{"$f":"IF(H79=1,\"* Interdit *\",\"\")","v":""}]
[null,null,null,null,null,null,"   Latté?",null,null,null,null,null,{"$f":"IF(R74=1,\"* Interdit *\",\"\")","v":""},null,"Latté?  ",null,null,null,null,{"$f":"IF(Y74=1,\"* Interdit *\",\"\")","v":""},null,"Latté? "]
[]
[null,null,"Têtière ",null,null,null,null,"m",null,"(HHB)",{"$f":"IF(G76=\"\",0.02*G86,G76)","v":0},null,null,null,"  Symétries respectées?  ",null,null,null,null,null,null,"  Symétries respectées? "]
[]
[null,null,"7/8 haut",null,null,null,null,"m",null,"(HUW)",{"$f":"IF(G78=\"\",0.125*G86+0.875*K76,G78)","v":0},{"$f":"IF(R78=1,\"(**)\",\"\")","v":""},null,null,"     Nerf de Chute ?  ",null,null,null,{"$f":"IF(Y78=1,\"(**)\",\"\")","v":""},null,null,"     Nerf de Chute ? "]
[]
[null,null,"3/4 haut",null,null,null,null,"m",null,"(HTW)",{"$f":"IF(G80=\"\",0.25*G86+0.75*K76,G80)","v":0},"Guindant",null,null,null," m","(SLU)",null,"Guindant",null,null,null,"m","(SLU)"]
[]
[null,null,"Mi-hauteur",null,null,null,null,"m",null,"(HHW)",{"$f":"IF(G82=\"\",0.5*G86+0.5*K76,G82)","v":0},null,"Chute",null,null," m","(SLE)",null,null,"Chute",null,null,"m","(SLE)"]
[]
[null,null,"1/4 bas",null,null,null,null,"m",null,"(HQW)",{"$f":"IF(G84=\"\",0.75*G86+0.25*K76,G84)","v":0},null,"Mi-hauteur",null,null," m","(SHW)",{"$f":"1.8*MAX($G$35,$G$39)","v":0},null,"Mi-hauteur",null,null,"m","(SHW)",{"$f":"1.8*MAX($G$35,$G$39)","v":0}]
[]
[null,null,"+ Gde Larg",null,null,null,null,"m",null,"(HLP)",null,{"$f":"IF(O86=\"\",R86,O86)","v":0},"Bordure",null,null," m","(SFL)",{"$f":"1.8*MAX($G$35,$G$39)","v":0},{"$f":"IF(V86=\"\",Y86,V86)","v":0},"Bordure",null,null,"m","(SFL)",{"$f":"1.8*MAX($G$35,$G$39)","v":0}]
[]
[null,null,"Guindant",null,null,null,null,"m",null,"(HLU)",null,{"$f":"IF(OR(O80=\"\",O84=\"\"),\"\",IF(O84<0.75*O86,\"Ce n'est pas un Spinnaker !!!\",IF(R74=1,\"Ce spinnaker n'est pas conforme\",IF(OR(R76<>1,R78=1,O82<0.95*O80),\"Ce Spinnaker est un Asymétrique.\",\"\"))))","v":""},null,null,null,null,null,null,{"$f":"IF(OR(V80=\"\",V84=\"\"),\"\",IF(V84<0.75*V86,\"Ce n'est pas un Spinnaker !!!\",IF(Y74=1,\"Ce spinnaker n'est pas conforme\",IF(OR(Y76<>1,Y78=1,V82<0.95*V80),\"Ce Spinnaker est un Asymétrique.\",\"\"))))","v":""}]
[]
[null,null,null,null,"Surface =",null,{"$f":"IF(OR(G86=\"\",G88=\"\"),\"\",ROUND(0.1125*G88*(1.445*G86+2*K84+2*K82+1.5*K80+K78+0.5*K76),2))","v":""}," m²",null,null,{"$f":"IF(D88=\"\",0,1)","v":0},null,"Surface =",null,{"$f":"IF(OR(O80=\"\",O82=\"\",O84=\"\",O86=\"\"),\"\",IF(S90=1,\"Erreur\",ROUND((O80+O82)/2*(O86+4*O84)/6,2)))","v":""}," m²",null,{"$f":"IF(S88=\"\",0,1)","v":0},null,"Surface =",null,{"$f":"IF(OR(V80=\"\",V82=\"\",V84=\"\",V86=\"\"),\"\",IF(Z90=1,\"Erreur\",ROUND((V80+V82)/2*(V86+4*V84)/6,2)))","v":""}," m²",null,null,{"$f":"IF(AI82=\"\",0,1)","v":0}]
[]
[null,null,null,null,null,null,null,null,null,null,null,{"$f":"IF(OR(L78=\"(**)\",(S78=\"(**)\")),\"(**) : Les Nerfs de Chute sont interdits dans les Spinnakers Symétriques.\",\"\")","v":""}]
[null,"VOILES CREUSES D'AVANT","Spinnakers  Asymétriques",null,null,null,null,null,null,null,null,null,null,null,null,null,null,null,null,null,null,null,null,null,null,null,"VOILES CREUSES D'AVANT"]
[null,null,null,null,"TYPE",null,"Matériaux utilisés",null,null,null,null,null,"TYPE",null,"Matériaux utilisés",null,null,null,null,"TYPE",null,"Matériaux utilisés"]
[]
[]
[null,null,null,null,{"$f":"IF(I98=1,\"* Interdit *\",\"\")","v":""},null,"  Latté?",null,null,null,null,null,{"$f":"IF(P98=1,\"* Interdit *\",\"\")","v":""},null,"  Latté?",1,null,null,null,{"$f":"IF(X98=1,\"* Interdit *\",\"\")","v":""},null,"  Latté?"]
[]
[null,null,null,"Guindant",null,null,null,"m",null,"(SLU)",null,"Guindant",null,null,null,"m","(SLU)",null,"Guindant",null,null,null,"m","(SLU)"]
[]
[null,null,null,null,"Chute",null,null,"m",null,"(SLE)",null,null,"Chute",null,null,"m","(SLE)",null,null,"Chute",null,null,"m","(SLE)"]
[]
[null,null,null,null,"Mi-hauteur",null,null,"m",null,"(SHW)",null,null,"Mi-hauteur",null,null,"m","(SHW)",null,null,"Mi-hauteur",null,null,"m","(SHW)"]
[]
[null,null,null,"Bordure",null,null,null,"m",null,"(SFL)",null,"Bordure",null,null,null,"m","(SFL)",null,"Bordure",null,null,null,"m","(SFL)"]
[]
[null,null,null,{"$f":"IF(G103=\"\",\"\",IF(G103<0.75*G105,\"Ce n'est pas un Spinnaker !!!\",IF(I98=1,\"Ce Spinnaker n'est pas conforme.\",\"\")))","v":""},null,null,null,null,null,null,null,null,{"$f":"IF(O103=\"\",\"\",IF(O103<0.75*O105,\"Ce n'est pas un Spinnaker !!!\",IF(P98=1,\"Ce Spinnaker n'est pas conforme.\",\"\")))","v":""},null,null,null,null,null,null,{"$f":"IF(V103=\"\",\"\",IF(V103<0.75*V105,\"Ce n'est pas un Spinnaker !!!\",IF(W98=1,\"Ce Spinnaker n'est pas conforme.\",\"\")))","v":""}]
[]
[null,null,null,null,"Surface =",null,{"$f":"IF(OR(G99=\"\",G101=\"\",G103=\"\",G105=\"\"),\"\",IF(K109=1,\"Erreur\",ROUND((G99+G101)/2*(G105+4*G103)/6,2)))","v":""}," m²",null,null,{"$f":"IF(D107=\"\",0,1)","v":0},null,"Surface =",null,{"$f":"IF(OR(O99=\"\",O101=\"\",O103=\"\",O105=\"\"),\"\",IF(S109=1,\"Erreur\",ROUND((O99+O101)/2*(O105+4*O103)/6,2)))","v":""}," m²",null,{"$f":"IF(L107=\"\",0,1)","v":0},null,"Surface =",null,{"$f":"IF(OR(V99=\"\",V101=\"\",V103=\"\",V105=\"\"),\"\",IF(Z109=1,\"Erreur\",ROUND((V99+V101)/2*(V105+4*V103)/6,2)))","v":""}," m²",null,{"$f":"IF(T107=\"\",0,1)","v":0}]
[]
[]
[null,"Je certifie l'exactitude de mes déclarations et m'engage à signaler toute erreur ou toute modification ultérieure au Centre de Calcul FFVoile."]
[]
[null,null,null,"COMMENTAIRES :"]
[]
[null,null,null,null,null,null,null,null,null,null,null,null,"Posséder vous des voiles en Mylar, Kevlar, 3DL, etc…?",null,null,null,null,null,null,null,null,null,null,null,null,1]
[]
[null,null,null,null,null,null,null,null,null,null,null,null,null,null,null,null,"Fait à :"]
[]
[null,null,null,null,null,null,null,null,null,null,null,null,null,null,null,null,"Le :"]
[]
[null,null,null,null,null,null,null,null,null,null,null,null,null,null,null,null,"Le Déclarant :",null,null,null,null,null,null,null,null,null,2]
[null,null,null,null,null,null,null,null,null,null,null,null,null,null,"     Le propriétaire (ou son représentant)"]
[]
[]
[null,"Pour connaitre les définitions de l'équipement, les points de mesure et mesures des voiles et du gréement, se reporter sur:"]
[null,"http://www.ffvoile.fr/ffv/web/services/arbitrage/RCV.asp#Equipement"]

{"sheet":"Lexique 2017","index":5,"n_rows":41,"n_cols":3,"rows_kept":41,"cut":false,"hidden":false,"merged":[]}
[null,null,"                                  Lexique 2017"]
[null,"DESIGNATIONS","DEFINITIONS"]
[null,"LOA ou LH","Longueur de coque"]
[null,"IG","Hauteur de l'étai (Par rapport au livet de référence)"]
[null,"ISP","Hauteur de la drisse de spinnaker (Par rapport au livet de référence)"]
[null,"J","Base du triangle avant (Distance horizontale entre la face avant du mat et l'axe de l’étai au niveau du pont"]
[null,"FSJ","Distance horizontale entre l’extrémité avant de LOA et celle de J"]
[null,"P","Distance relevée sur le mat entre la marque limite inférieure et la marque limite supérieure d’établissement du guindant de la grand-voile"]
[null,"E","Distance relevée sur la bôme entre le bord arrière du mat et la marque extérieure de la bôme"]
[null,"BAS","Distance entre le point inférieur de la mesure de P et le livet de référence"]
[null,"MHB","Têtière d’une grand-voile (GV)"]
[null,"MUW","Largeur supérieure de GV au 7/8 de chute"]
[null,"MTW","Largeur haute de GV au 3/4 de chute"]
[null,"MHW","Largeur milieu de GV au 1/2 de chute"]
[null,"MQW","Largeur inférieure  de GV au 1/4 de chute"]
[null,"HLU","Guindant d’une voile d’avant (Foc, Génois, Code 0 ou Gennaker)"]
[null,"HHB","Têtière d’une voile d’avant (Foc, Génois, Code 0 ou Gennaker)"]
[null,"HUW","Largeur supérieure d’une voile d’avant au 7/8 de hauteur de la chute"]
[null,"HTW","Largeur haute d’une voile d’avant au 3/4 de hauteur de la chute"]
[null,"HHW","Largeur milieu d’une voile d’avant au 1/2 de hauteur de la chute"]
[null,"HQW","Largeur inférieure  d’une voile d’avant au 1/4 de hauteur de la chute"]
[null,"HLP","Plus grande perpendiculaire mesurée entre le point d’écoute et le guindant d’une voile d’avant                                      (Foc, Génois, Code 0 ou Gennaker)"]
[null,"HMW","Largeur à mi-hauteur d’une voile d’avant (Foc, Génois, Code 0 ou Gennaker)                                                                                (Distance entre le milieu du guindant et le milieu de la chute)"]
[null,"HF","Bordure d’une voile d’avant (Foot)"]
[null,"SL","Dimension maximum pour SLU et SLE"]
[null,"SLU","Guindant de spi symétrique"]
[null,"SLE","Chute de spi symétrique"]
[null,"STW","Largeur au 7/8 du spi symétrique                                                                                                                                                          (Distance entre les 7/8 des chutes ou pour un asymétrique du guindant et de la chute)"]
[null,"SHW","Largeur à mi-hauteur du spi symétrique                                                                                                                                                          (Distance entre le milieu du guindant et le milieu de la chute)"]
[null,"SFL","Bordure du spi symétrique"]
[null,"ALU (SLU)","Guindant du spi asymétrique"]
[null,"ALE (SLE)","Chute du spi asymétrique"]
[null,"ASL","Guindant moyen du spi asymétrique = (ALU+ALE)/2"]
[null,"AMG (SHW)","Largeur à mi-hauteur du spi asymétrique                                                                                                                                                          (Distance entre le milieu du guindant et le milieu de la chute)"]
[null,"ASF (SFL)","Bordure du spi asymétrique"]
[null,"SPL","Longueur hors tout du tangon fixé horizontalement sur sa ferrure, mesuré en extension"]
[null,"TPS","Distance horizontale entre la face avant du mat et la fixation de la voile à l’extrémité extérieure du bout-dehors"]
[null,"BDH","Bout-dehors"]
[null,"FSP","2 fois le diamètre de l'enrouleur et/ou 2 fois la largeur de l'étai creux"]
[null,"Voile d'avant                            ---> Gennaker","Une voile d'avant est un Gennaker quand sa largeur à mi-hauteur (MHW) est supérieure à 55% de sa bordure"]
[null,"Voile d'avant / Gennaker       ---> Spinnaker","Une voile d'avant ou un Gennaker est un Spinnaker quand sa largeur à mi-hauteur (SHW) est supérieure ou égale à 75% de sa bordure (SFL)"]

{"sheet":"Auxiliaries","index":6,"n_rows":131,"n_cols":17,"rows_kept":131,"cut":false,"hidden":true,"merged":[[2,15,2,16],[68,1,69,3],[1,1,2,3],[1,5,2,7],[33,9,34,11],[52,9,53,11]]}
[]
[null,"1ère Demande  - Page 1",null,null,null,"1ère Demande  - Page 2"]
[null,null,null,null,null,null,null,null,null,null,null,null,null,null,null,"CLUB - 2016"]
[null,null,null,null,null,null,null,null,null,null,null,null,null,null,null,"New","Reval."]
[null,"T32-X32","Partic",null,null,"G8-I8","Hélice",null,null,"P58-W58","Coque",null,null,null,null,68,45]
[null,null,"Standard",null,null,null,"Solide",null,null,null,"Monolithique Verre \"E\"",null,null,null,null,83,53]
[null,null,"GTE",null,null,null,"Rabattable",null,null,null,"Sandwich et fibres de Verre \"E\"",null,null,null,null,108,69]
[null,null,"PTE",null,null,null,"Orientable",null,null,null,"Bois",null,null,null,null,148,94]
[null,null,"Croisière",null,null,null,"Pas d' Hélice",null,null,null,"Aluminium",null,null,null,null,201,128]
[null,null,"Racing",null,null,null,null,null,null,null,"Acier"]
[null,null,"\"Q\"",null,null,null,null,null,null,null,"Carbone"]
[null,null,"\"DL\"",null,null,null,null,null,null,null,"Autres  (ex Kevlar, Verre \"S\", etc)"]
[null,null,"\"DI\"",null,null,"G29-I29","Gréement",null,null,null,"Nid d'abeille"]
[null,null,null,null,null,null,"Sloop"]
[null,null,null,null,null,null,"Ketch"]
[null,null,null,null,null,null,"Goelette"]
[null,"H56-L56","Déplacement",null,null,null,"Cat Boat",null,null,"P63-S63","Chandeliers"]
[null,null,"Pesée Règlementaire (FFVoile)",null,null,null,null,null,null,null,"Chandeliers"]
[null,null,"Pesée Règlementaire (IRC) ",null,null,null,null,null,null,null,"Balcons"]
[null,null,"Stabilité IMS",null,null,null,null,null,null,null,"Filières"]
[null,null,"Documentation Fabricant",null,null,"M29-O29","Fraction"]
[null,null,"Bateau similaire",null,null,null,"En Tête"]
[null,null,"Estimation",null,null,null,"7/8 ème"]
[null,null,null,null,null,null,"7/9 ème",null,null,"U63-W63","MatériauChand"]
[null,null,null,null,null,null,"9/10 ème",null,null,null,"Acier"]
[null,null,null,null,null,null,"3/4",null,null,null,"Titane"]
[null,"I58-T58","Condition",null,null,null,null,null,null,null,"Carbone"]
[null,null,"Lège (IMS ou IRC)",null,null,null,null,null,null,null,"Polyester"]
[null,null,"ISO-en Condition Lège (Masse lcc)",null,null,null,null,null,null,null,"Aramide"]
[null,null,"ISO-en Condition Minimale de Navigation (Masse moc)",null,null,"G44-I44","Etaiavant",null,null,null,"Autre"]
[null,null,"ISO-en Condition En Charge (Masse ldc)",null,null,null,"Brut"]
[null,null,"Prêt à Naviguer",null,null,null,"Etai creux"]
[null,null,null,null,null,null,"Emmaganiseur"]
[null,null,null,null,null,null,"Enrouleur",null,null,"1ère Demande  - Page 3"]
[]
[null,"G65-L65","Quille"]
[null,null,"Fixe dans l'axe",null,null,null,null,null,null,"N65-R65","Boutdehors"]
[null,null,"Coulissante",null,null,"R44-V44","Dormant",null,null,null,"Pas de Bout-dehors"]
[null,null,"Bloquée en Position Basse",null,null,null,"Acier Toronné",null,null,null,"Fixe dans l'axe"]
[null,null,"Dérive",null,null,null,"Dyform",null,null,null,"Coulissant"]
[null,null,"Inclinable",null,null,null,"Rod Circulaire",null,null,null,"Orientable"]
[null,null,"Orientable",null,null,null,"Rod Lenticulaire"]
[null,null,null,null,null,null,"Fibres"]
[null,null,null,null,null,null,"Pas de Hauban"]
[]
[]
[null,"F68-h68","MatériauV"]
[null,null,"Fonte",null,null,"G46-I46","BasEtai"]
[null,null,"Plomb",null,null,null,"Absent"]
[null,null,"Composite",null,null,null,"Fixe"]
[null,null,"Tôle Aluminium vide",null,null,null,"Ajustable"]
[null,null,"Tôle Aluminium + Plomb"]
[null,null,"Tôle Acier vide",null,null,null,null,null,null,"1ère Demande  - Page 4"]
[null,null,"Tole acier + plomb"]
[null,null,null,null,null,"K52-P52","EnergieManuelle"]
[null,null,null,null,null,null,"Ecoutes des Voiles"]
[null,null,null,null,null,null,"Pataras, hale-bas de bôme, bordure de GV"]
[null,"N68-P68","MatériauBA",null,null,null,"Ecoutes, pataras, hale-bas et bordure"]
[null,"V68-X68","Fonte",null,null,null,"Eergie manuelle seule"]
[null,null,"Plomb"]
[null,null,"Aucun"]
[]
[]
[]
[]
[]
[]
[]
[null,"Mesures des Voiles"]
[]
[]
[null,"J23","GdVoile"]
[null,"T23","Lourde"]
[null,null,"Médium"]
[null,null,"Légère"]
[null,null,"Croisière"]
[null,null,"Course"]
[]
[]
[null,"E47","Genois"]
[null,"M47","Lourd"]
[null,"T47","Médium"]
[null,"M72","Léger"]
[null,"T72","Croisière"]
[null,null,"Course"]
[null,null,"Code 0"]
[]
[]
[null,"E70","Spinnaker"]
[null,null,"Lourd"]
[null,null,"Médium"]
[null,null,"Léger"]
[null,null,"Croisière"]
[null,null,"Course"]
[]
[]
[]
[null,"M27","TissuGVGenois"]
[null,"V27","Inconnu"]
[null,"G47","Dacron - PET"]
[null,"O47","Pentex-  PEN"]
[null,"V47","Spectra - HMPE"]
[null,null,"Dyneema - HMPE"]
[null,null,"Certran - HMPE"]
[null,null,"Kevla - PPTA"]
[null,null,"Twaron - PPTA"]
[null,null,"Technora - PPTA"]
[null,null,"Zylon - PBO"]
[null,null,"Vectran -LCP"]
[null,null,"Carbone"]
[null,null,"MYLAR - PET Film"]
[null,null,"MELINEX - PET Film"]
[null,null,"Nylon"]
[null,null,"Polyester"]
[null,null,"Autres"]
[]
[]
[]
[null,"G70","TissuGennaker"]
[null,null,"Inconnu"]
[null,null,"Nylon"]
[null,null,"Polyester"]
[null,null,"Autres"]
[]
[]
[]
[null,"O72","TissuSpinnaker"]
[null,"V72","Inconnu"]
[null,"G95","Nylon"]
[null,"O98","Polyester"]
[null,"V95","Autres"]